Workbook

Sheet Лист1
A1: Табличка | G1: Съедает Лео
B3: Ккал | C3: Б | D3: Ж | E3: У | G3: Ккал | H3: Б | I3: Ж | J3: У
A4: Овсянка | B4: 305 | C4: 11 | D4: 6.2 | E4: 50 | F4: 100 | G4: =B4*$F$4/100 -> 305 | H4: =C4*$F$4/100 -> 11 | I4: =D4*$F$4/100 -> 6.2 | J4: =E4*$F$4/100 -> 50
A5: Молоко | B5: 60 | C5: 3.1 | D5: 4.2 | E5: 4.8 | F5: 500 | G5: =B5*$F$5/100 -> 300 | H5: =C5*$F$5/100 -> 15.5 | I5: =D5*$F$5/100 -> 21 | J5: =E5*$F$5/100 -> 24
A6: Яйца | B6: 152 | C6: 13.3 | D6: 11.9 | E6: 0.7 | F6: 2 | G6: =B6*$F$6 -> 304 | H6: =C6*$F$6 -> 26.6 | I6: =D6*$F$6 -> 23.8 | J6: =E6*$F$6 -> 1.4
A7: Гречка | B7: 335 | C7: 12.2 | D7: 2.9 | E7: 67 | F7: 200 | G7: =B7*$F$7/100 -> 670 | H7: =C7*$F$7/100 -> 24.4 | I7: =D7*$F$7/100 -> 5.8 | J7: =E7*$F$7/100 -> 134
A8: Грудка | B8: 150 | C8: 25 | D8: 6 | F8: 250 | G8: =B8*$F$8/100 -> 375 | H8: =C8*$F$8/100 -> 62.5 | I8: =D8*$F$8/100 -> 15 | J8: =E8*$F$8/100 -> 0
A9: Мед | B9: 310 | C9: 0.6 | D9: 0 | E9: 78.4 | F9: 30 | G9: =B9*$F$9/100 -> 93 | H9: =C9*$F$9/100 -> 0.18 | I9: =D9*$F$9/100 -> 0 | J9: =E9*$F$9/100 -> 23.52
A10: Масло | B10: 740 | C10: 0.4 | D10: 85 | E10: 0 | F10: 30 | G10: =B10*$F$10/100 -> 222 | H10: =C10*$F$10/100 -> 0.12 | I10: =D10*$F$10/100 -> 25.5 | J10: =E10*$F$10/100 -> 0
G11: =SUM(G4:G10) -> 2269 | H11: =SUM(H4:H10) -> 140.3 | I11: 97.3 | J11: 232.92

Sheet Лист2

Sheet Лист3
